fUST/lending_fUST_20240118
["ID","MTS","AMOUNT","RATE_DAILY","PERIOD"]
[312048104,1705575040537,-500.0,0.00031959,4]
[312048105,1705575040546,-500.0,0.00031959,4]
[312048106,1705575040555,-430.80459298,0.00031959,4]
[312048107,1705575040565,-500.0,0.00031959,4]
[312048108,1705575040574,-175.22,0.00031959,2]
[312048109,1705575040583,-257459.23559535,0.0003196,2]
[312048110,1705575040592,-92970.17385904,0.0003196,2]
[312048111,1705575040601,-410.41281499,0.0003196,2]
[312048112,1705575040612,-351.14579978,0.0003196,2]
[312048113,1705575040622,-4319.3054765,0.0003196,4]
[312048114,1705575040630,-231571.06779665,0.0003196,14]
[312048115,1705575040640,-283.01176432,0.0003196,3]
[312048116,1705575040649,-195.1690538,0.0003196,4]
[312048117,1705575040658,-154.9690062,0.0003196,2]
[312048118,1705575040668,-1000.0,0.00032,32]
[312048120,1705575040677,-2000.0,0.00032,8]
[312048122,1705575040686,-502.016768,0.00032,3]
[312048124,1705575040696,-2000.0,0.00032,8]
[312048127,1705575040705,-138.11501482,0.00032,4]
[312048130,1705575040786,-61.88498518,0.00032,4]
[312048131,1705575040795,-2000.0,0.0003201,8]
[312048132,1705575040804,-2000.0,0.0003201,8]
[312048133,1705575040813,-2000.0,0.0003202,8]
[312048134,1705575040822,-2000.0,0.0003202,8]
[312048135,1705575040832,-2000.0,0.0003203,8]
[312048136,1705575040841,-2000.0,0.0003203,8]
[312048137,1705575040850,-2000.0,0.0003204,8]
[312048138,1705575040859,-2000.0,0.0003204,8]
[312048139,1705575040868,-2000.0,0.0003205,8]
[312048140,1705575040877,-2000.0,0.0003205,8]
[312048141,1705575040887,-2000.0,0.0003206,8]
[312048142,1705575040896,-2000.0,0.0003206,8]
[312048143,1705575040906,-2000.0,0.0003207,8]
[312048144,1705575040915,-2000.0,0.0003207,8]
[312048145,1705575040925,-2000.0,0.0003208,8]
[312048146,1705575040934,-2000.0,0.0003208,8]
[312048147,1705575040943,-620.00170182,0.00032089,2]
[312048148,1705575040953,-2000.0,0.0003209,8]
[312048149,1705575040963,-2000.0,0.0003209,8]
[312048150,1705575040972,-2000.0,0.000321,8]
[312048151,1705575040981,-2000.0,0.000321,8]
[312048152,1705575040990,-2000.0,0.0003211,8]
[312048153,1705575041000,-2000.0,0.0003211,8]
[312048154,1705575041011,-2000.0,0.0003212,8]
[312048155,1705575041020,-2000.0,0.0003212,8]
[312048156,1705575041029,-2000.0,0.0003213,8]
[312048157,1705575041039,-2000.0,0.0003213,8]
[312048158,1705575041047,-2000.0,0.0003214,8]
[312048159,1705575041057,-2000.0,0.0003214,8]
[312048160,1705575041066,-2000.0,0.0003215,8]
[312048161,1705575041075,-2000.0,0.0003215,8]
[312048162,1705575041084,-2000.0,0.0003216,8]
[312048163,1705575041093,-2000.0,0.0003216,8]
[312048164,1705575041102,-2000.0,0.0003217,8]
[312048165,1705575041111,-2000.0,0.0003217,8]
[312048166,1705575041120,-2000.0,0.0003218,8]
[312048167,1705575041129,-2000.0,0.0003218,8]
[312048168,1705575041138,-2000.0,0.0003219,8]
[312048169,1705575041147,-2844.251759,0.0003219,8]
[312048170,1705575041156,-2000.0,0.000322,8]
[312048171,1705575041165,-2000.0,0.0003221,9]
[312048172,1705575041174,-2000.0,0.0003222,9]
[312048173,1705575041182,-2000.0,0.0003223,9]
[312048174,1705575041191,-2000.0,0.0003224,9]
[312048175,1705575041202,-1797.39725889,0.0003225,9]
[312048177,1705575041541,-996.66885911,0.0003225,9]
[312048178,1705575041551,-153.29820472,0.00032455,7]
[312048179,1705575041560,-372.0,0.00032469,30]
[312048180,1705575041569,-372.0,0.00032479,30]
[312048181,1705575041579,-285.35179951,0.00032489,30]
[312048182,1705575041591,-86.64820049,0.00032489,30]
[312048183,1705575041601,-1819.21544079,0.0003249,2]
[312048184,1705575041611,-243.96064711,0.00032496,4]
[312048185,1705575041621,-166.49194019,0.00032496,4]
[312048186,1705575041631,-263.91995503,0.00032497,3]
[312048187,1705575041640,-333.93407834,0.00032498,4]
[312048188,1705575041652,-650.27165397,0.00032498,4]
[312048189,1705575041662,-237.38624062,0.00032498,4]
[312048190,1705575041672,-196.5046549,0.00032498,4]
[312048191,1705575041681,-155.45213765,0.00032498,4]
[312048192,1705575041690,-298.50922313,0.00032498,4]
[312048193,1705575041703,-3010.12944344,0.00032498,4]
[312048194,1705575041712,-5846.95993332,0.00032498,4]
[312048195,1705575041724,-2052.25374495,0.00032498,4]
[312048196,1705575041744,-5110.48067314,0.00032498,4]
[312048238,1705575043732,-5875.10325317,0.00032498,4]
[312048239,1705575043742,-155.55638664,0.00032498,4]
[312048240,1705575043752,-181.38411565,0.00032498,4]
[312048243,1705575043764,-155.0,0.00032498,4]
[312048244,1705575043774,-594.98421659,0.00032499,4]
[312048247,1705575043783,-399757.70001509,0.000325,20]
[312048250,1705575043792,-650.89335401,0.000325,4]
[312048251,1705575043802,-2012.9,0.000325,4]
[312048253,1705575043812,-892.14209609,0.000325,4]
[312048254,1705575043821,-300.0,0.000325,4]
[312048255,1705575043831,-156.93310058,0.000325,4]
[312048256,1705575043841,-1500.0,0.000325,2]
[312048257,1705575043851,-245.009401,0.000325,5]
[312048258,1705575043860,-178.35667624,0.00032566,7]
[312048259,1705575043870,-178.35667624,0.000326,7]
[312048260,1705575043879,-615.647716,0.00032603,2]
[312048261,1705575043889,-155.0,0.0003264,2]
[312048262,1705575043900,-178.35667624,0.00032642,7]
[312048263,1705575043909,-151.0,0.00032689,2]
[312048264,1705575043921,-153.29820472,0.0003272,7]
[312048265,1705575043930,-5000.0,0.00032723,2]
[312048266,1705575043940,-5000.0,0.00032748,7]
[312048267,1705575043952,-5000.0,0.00032756,7]
[312048268,1705575043962,-178.35667624,0.00032784,7]
[312048269,1705575043971,-153.29820472,0.00032788,7]
[312048270,1705575043980,-163.139514,0.00032792,2]
[312048271,1705575043990,-500.0,0.00032876,7]
[312048272,1705575044000,-193.25814828,0.00032876,7]
[312048273,1705575044009,-500.0,0.00032876,7]
[312048274,1705575044018,-298.49155296,0.00032876,7]
[312048275,1705575044027,-500.0,0.00032876,7]
[312048276,1705575044036,-500.0,0.00032876,7]
[312048277,1705575044045,-297.0692753,0.00032876,7]
[312048278,1705575044054,-500.0,0.00032876,7]
[312048279,1705575044063,-500.0,0.00032876,7]
[312048280,1705575044072,-500.0,0.00032876,7]
[312048281,1705575044081,-500.0,0.00032876,7]
[312048282,1705575044090,-500.0,0.00032876,7]
[312048283,1705575044098,-500.0,0.00032876,7]
[312048284,1705575044107,-500.0,0.00032876,7]
[312048285,1705575044117,-287.99090405,0.00032876,7]
[312048286,1705575044126,-500.0,0.00032876,7]
[312048287,1705575044136,-159.69831059,0.00032876,7]
[312048288,1705575044145,-193.25814828,0.00032876,7]
[312048289,1705575044154,-365.51661901,0.00032876,7]
[312048290,1705575044163,-326.81392874,0.00032876,7]
[312048291,1705575044173,-197.25426718,0.00032876,7]
[312048292,1705575044182,-500.0,0.00032876,7]
[312048293,1705575044191,-500.0,0.00032876,7]
[312048294,1705575044203,-421.96827082,0.00032876,7]
[312048295,1705575044212,-414.51855602,0.00032876,7]
[312048296,1705575044222,-500.0,0.00032876,7]
[312048297,1705575044232,-500.0,0.00032876,7]
[312048298,1705575044241,-500.0,0.00032876,7]
[312048299,1705575044250,-500.0,0.00032876,7]
[312048300,1705575044259,-500.0,0.00032876,7]
[312048301,1705575044268,-500.0,0.00032876,7]
[312048302,1705575044277,-500.0,0.00032876,7]
[312048303,1705575044286,-500.0,0.00032876,7]
[312048304,1705575044295,-500.0,0.00032876,7]
[312048305,1705575044304,-500.0,0.00032876,7]
[312048306,1705575044313,-500.0,0.00032876,7]
[312048307,1705575044322,-500.0,0.00032876,7]
[312048308,1705575044332,-500.0,0.00032876,7]
[312048309,1705575044341,-500.0,0.00032876,7]
[312048310,1705575044350,-500.0,0.00032876,7]
[312048311,1705575044359,-500.0,0.00032876,7]
[312048312,1705575044368,-446.41123311,0.00032876,7]
[312048313,1705575044377,-500.0,0.00032876,7]
[312048314,1705575044386,-500.0,0.00032876,7]
[312048315,1705575044395,-500.0,0.00032876,7]
[312048316,1705575044404,-500.0,0.00032876,7]
[312048317,1705575044413,-500.0,0.00032876,7]
[312048318,1705575044422,-500.0,0.00032876,7]
[312048319,1705575044431,-500.0,0.00032876,7]
[312048320,1705575044440,-500.0,0.00032876,7]
[312048321,1705575044450,-500.0,0.00032876,7]
[312048322,1705575044460,-500.0,0.00032876,7]
[312048323,1705575044470,-500.0,0.00032876,7]
[312048324,1705575044479,-500.0,0.00032876,7]
[312048325,1705575044488,-500.0,0.00032876,7]
[312048326,1705575044498,-500.0,0.00032876,7]
[312048327,1705575044507,-500.0,0.00032876,7]
[312048328,1705575044517,-500.0,0.00032876,7]
[312048329,1705575044526,-305.93631425,0.00032876,7]
[312048330,1705575044536,-500.0,0.00032876,7]
[312048331,1705575044545,-500.0,0.00032876,7]
[312048332,1705575044554,-246.77783403,0.00032876,7]
[312048333,1705575044563,-1265.92,0.00032876,2]
[312048334,1705575044572,-168.397538,0.00032877,2]
[312048335,1705575044582,-168.397538,0.00032877,120]
[312048336,1705575044591,-178.35667624,0.00032922,7]
[312048337,1705575044600,-2000.0,0.00033,4]
[312048338,1705575044609,-1000.0,0.00033,33]
[312048339,1705575044619,-500.0,0.00033,3]
[312048340,1705575044628,-196.0,0.00033,2]
[312048341,1705575044638,-196.0,0.00033,2]
[312048342,1705575044648,-196.0,0.00033,2]
[312048343,1705575044657,-154.81467579,0.00033096,7]
[312048344,1705575044666,-1265.92,0.0003315,2]
[312048345,1705575044675,-200.41,0.000332,4]
[312048346,1705575044685,-9690.0880035,0.0003325,5]
[312048347,1705575044694,-5000.0,0.00033311,7]
[312048348,1705575044705,-1000.0,0.00033397,10]
[312048349,1705575044713,-151.0,0.00033422,2]
[312048350,1705575044722,-1265.92,0.00033424,2]
[312048351,1705575044731,-615.647716,0.00033425,2]
[312048352,1705575044741,-219.77894514,0.00033599,4]
[312048353,1705575044750,-163.139514,0.00033678,2]
[312048354,1705575044759,-620.00008509,0.00033694,2]
[312048355,1705575044769,-1265.92,0.00033698,2]
[312048356,1705575044779,-153.29820472,0.00033807,7]
[312048357,1705575044788,-153.29820472,0.00033861,7]
[312048358,1705575044797,-280.0,0.00033879,15]
[312048359,1705575044806,-1265.92,0.00033972,2]
[312048360,1705575044815,-1000.0,0.00034,7]
[312048361,1705575044824,-17988.56805177,0.00034,2]
[312048362,1705575044833,-200.13788167,0.00034,2]
[312048363,1705575044842,-1000.0,0.00034,34]
[312048364,1705575044851,-500.0,0.00034,3]
[312048365,1705575044860,-155.0,0.0003401,2]
[312048366,1705575044869,-153.29820472,0.00034036,7]
[312048367,1705575044877,-154.81467579,0.00034084,7]
[312048368,1705575044887,-151.0,0.00034154,2]
[312048369,1705575044895,-153.29820472,0.00034202,7]
[312048370,1705575044906,-178.35667624,0.00034215,7]
[312048371,1705575044916,-1265.92,0.00034246,2]
[312048372,1705575044925,-615.647716,0.00034247,2]
[312048373,1705575044933,-178.35667624,0.00034375,7]
[312048374,1705575044942,-178.35667624,0.00034427,7]
[312048375,1705575044956,-178.35667624,0.00034462,7]
[312048376,1705575044965,-178.35667624,0.00034482,7]
[312048377,1705575044974,-8989.6388019,0.000345,7]
[312048378,1705575044984,-1265.92,0.0003452,2]
[312048379,1705575044993,-150.0,0.00034543,2]
[312048380,1705575045003,-150.0,0.00034543,2]
[312048381,1705575045012,-50000.0,0.00034555,7]
[312048382,1705575045021,-163.139514,0.00034563,2]
[312048383,1705575045031,-178.35667624,0.00034599,7]
[312048384,1705575045040,-153.29820472,0.00034647,7]
[312048385,1705575045050,-22167.13030299,0.0003465,7]
[312048391,1705575046665,-4023.46,0.00034545,3]
[312048393,1705575046675,-27832.86969701,0.0003465,7]
[312048395,1705575046685,-178.35667624,0.00034653,7]
[312048397,1705575046695,-50000.0,0.00034661,7]
[312048399,1705575046706,-153.29820472,0.00034758,7]
[312048401,1705575046716,-1050.601098,0.00034758,2]
[312048402,1705575046725,-1050.601098,0.00034758,2]
[312048404,1705575046735,-1265.92,0.00034794,2]
[312048406,1705575046744,-178.35667624,0.00034824,7]
[312048407,1705575046754,-151.0,0.00034886,2]
[312048409,1705575046764,-153.29820472,0.00034906,7]
[312048411,1705575046773,-178.35667624,0.00034908,7]
[312048412,1705575046782,-4532.45860928,0.0003492,2]
[312048413,1705575046791,-178.35667624,0.00034936,7]
[312048414,1705575046800,-153.29820472,0.00034945,7]
[312048415,1705575046809,-154.98450155,0.00034998,2]
[312048416,1705575046819,-294.91773688,0.00034999,4]
[312048417,1705575046828,-156.26613286,0.00035,6]
[312048418,1705575046838,-1004.53357033,0.00035,7]
[312048419,1705575046848,-563.33668439,0.00035,2]
[312048420,1705575046858,-168.26088609,0.00035,15]
[312048421,1705575046867,-1000.0,0.00035,35]
[312048422,1705575046876,-21635.682849,0.00035,30]
[312048423,1705575046886,-1467.11943554,0.00035,45]
[312048424,1705575046895,-1908.4624749,0.00035,2]
[312048425,1705575046906,-75851.36457803,0.00035,15]
[312048426,1705575046916,-6760.97413379,0.00035,4]
[312048427,1705575046930,-1104.18339118,0.00035,14]
[312048428,1705575046939,-3078.13460206,0.00035,4]
[312048429,1705575046950,-845.27485417,0.00035,2]
[312048430,1705575046959,-11785.9566247,0.00035,3]
[312048431,1705575046971,-8214.0433753,0.00035,3]
[312048432,1705575046980,-6477.5627147,0.00035,2]
[312048438,1705575267193,4791.46238905,0.0001,2]
[312048453,1705575950114,-940.00433094,0.00026669,2]
[312048455,1705576042086,-166.666666,0.00026672,2]
[312048456,1705576042106,-983.22894186,0.00026995,2]
[312048457,1705576042125,-2001.1665667,0.00026995,2]
[312048458,1705576042145,-23587.6876893,0.00026996,2]
[312048459,1705576042165,-166.666666,0.00027399,2]
[312048460,1705576042184,-163.621458,0.0002742,2]
[312048461,1705576042204,-290.00241025,0.00028,2]
[312048462,1705576042228,-166.666666,0.00028126,2]
[312048463,1705576042249,-3481.93045804,0.00028418,2]
[312048464,1705576042270,-9611.51996911,0.00028593,4]
[312048465,1705576042292,-3295.31054135,0.00028657,4]
[312048466,1705576042311,-166.666666,0.00028853,2]
[312048467,1705576042332,-170.49588422,0.000289,2]
[312048468,1705576042353,-3530.51,0.00028988,3]
[312048469,1705576042374,-1851.41,0.00028989,3]
[312048470,1705576042394,-2907.63791919,0.00028996,2]
[312048471,1705576042414,-286.06712723,0.00028997,2]
[312048472,1705576042435,-612.17306485,0.00028997,2]
[312048473,1705576042455,-213.28698836,0.00028998,10]
[312048474,1705576042476,-688.82709207,0.00028998,2]
[312048475,1705576042496,-4617.31605414,0.00028998,2]
[312048532,1705576232717,-154.93802479,0.00026096,4]
[312048533,1705576232726,-194.65577065,0.00026569,2]
[312048535,1705576232736,-166.26169,0.00027721,2]
[312048537,1705576232746,-291.91809303,0.00028,2]
[312048539,1705576232755,-1551.05,0.0002899,3]
[312048541,1705576232764,-2683.58,0.0002899,3]
[312048543,1705576232773,-2236.32,0.0002899,3]
[312048545,1705576232782,-521.75377805,0.00028996,2]
[312048547,1705576232791,-303.67301095,0.00028996,2]
[312048549,1705576232801,-587.93162078,0.00028996,2]
[312048551,1705576232810,-260.95401004,0.00028996,2]
[312048553,1705576232819,-245.97076083,0.00028996,2]
[312048555,1705576232829,-2140.58685122,0.00028997,2]
[312048557,1705576232838,-654.29896599,0.00028998,2]
[312048690,1705576237927,-2391.70725573,0.00028705,4]
[312048692,1705576237937,-1863.6,0.0002899,3]
[312048694,1705576237947,-15581.50439129,0.00028998,2]
[312048696,1705576237957,-155.0,0.00028998,2]
[312048698,1705576237966,-261.3528024,0.00028998,2]
[312048700,1705576237976,-305.46439516,0.00028998,2]
[312048702,1705576237985,-3214.7973618,0.00028998,2]
[312048704,1705576237995,-19846.52895814,0.00028999,2]
[312048707,1705576238006,-832.38723413,0.00029,2]
[312048709,1705576238017,-14506.51643002,0.00029,2]
[312048711,1705576238034,-65156.1920313,0.00029,2]
[312048713,1705576238044,-2036.10625444,0.00029,2]
[312048715,1705576238054,-154.93802479,0.00029,2]
[312048718,1705576238064,-2455.73923901,0.00029,2]
[312048720,1705576238074,-620.0738305,0.0002937,2]
[312048722,1705576238084,-155.0,0.00029428,2]
[312048724,1705576238094,-166.666666,0.00029581,2]
[312048726,1705576238103,-10594.43968142,0.00029821,2]
[312048728,1705576238113,-406.08420108,0.000299,2]
[312048730,1705576238122,-976.18563318,0.00029921,2]
[312048732,1705576238132,-380.74206229,0.00029923,2]
[312048734,1705576238141,-682.23213824,0.0003,3]
[312048736,1705576238151,-166.71322997,0.0003,2]
[312048737,1705576238161,-29885.97240427,0.0003,2]
[312048740,1705576238171,-687.89788967,0.0003,4]
[312048741,1705576238181,-201.08171049,0.0003,4]
[312048743,1705576238191,-231.70259256,0.0003,4]
[312048745,1705576238201,-464.23133021,0.0003,2]
[312048747,1705576238212,-6192.60917587,0.0003,2]
[312048749,1705576238221,-640.81580837,0.0003,4]
[312048750,1705576238231,-1001.17389594,0.0003,3]
[312048752,1705576238241,-154.93802479,0.0003,2]
[312048754,1705576238250,-243.91959085,0.0003,4]
[312048756,1705576238264,-154.93802479,0.0003,4]
[312048758,1705576238273,-197.0,0.0003,2]
[312048760,1705576238282,-167.13604108,0.00030136,2]
[312048761,1705576238291,-473.226927,0.00030137,2]
[312048763,1705576238301,-163.139514,0.00030137,2]
[312048765,1705576238311,-166.666666,0.00030308,2]
[312048766,1705576238320,-5097.81943385,0.00030428,2]
[312048768,1705576238330,-188.70407984,0.00030428,2]
[312048769,1705576238340,-207.43369191,0.00030428,2]
[312048770,1705576238350,-2474.59071491,0.00030428,2]
[312048772,1705576238361,-522.27484048,0.00030428,2]
[312048773,1705576238371,-705.0604155,0.000305,3]
[312048774,1705576238380,-1231.50663855,0.000305,2]
[312048775,1705576238389,-155.0,0.00030798,2]
[312048776,1705576238398,-620.00369153,0.00030838,2]
[312048777,1705576238408,-473.226927,0.00030959,2]
[312048778,1705576238417,-261.0,0.0003097,30]
[312048779,1705576238426,-261.0,0.0003098,30]
[312048780,1705576238436,-261.0,0.0003099,30]
[312048781,1705576238445,-151.0,0.00030999,2]
[312048782,1705576238454,-188.46,0.00030999,2]
[312048783,1705576238464,-299.40501043,0.00031,2]
[312048784,1705576238475,-4238.46253677,0.00031,2]
[312048785,1705576238484,-97008.73081987,0.00031,4]
[312048786,1705576238494,-2550.15380316,0.00031111,2]
[312048787,1705576238504,-150.0,0.00031556,2]
[312048788,1705576238513,-497.89805688,0.00031581,5]
[312048789,1705576238523,-473.226927,0.00031781,2]
[312048790,1705576238532,-163.139514,0.00031781,2]
[312048791,1705576238541,-242.743,0.00031847,2]
[312048792,1705576238550,-200.0,0.00031895,15]
[312048793,1705576238560,-1400.0,0.00031917,2]
[312048794,1705576238569,-492.29631596,0.00031959,2]
[312048795,1705576238578,-381.28291687,0.00031959,2]
[312048796,1705576238587,-617.20996404,0.00031959,2]
[312048797,1705576238597,-500.0,0.00031959,2]
[312048798,1705576238606,-500.0,0.00031959,2]
[312048799,1705576238615,-500.0,0.00031959,2]
[312048800,1705576238625,-500.0,0.00031959,2]
[312048801,1705576238634,-500.0,0.00031959,2]
[312048802,1705576238643,-617.43731603,0.00031959,2]
[312048803,1705576238653,-500.0,0.00031959,2]
[312048804,1705576238662,-500.0,0.00031959,2]
[312048805,1705576238671,-500.0,0.00031959,2]
[312048806,1705576238681,-500.0,0.00031959,2]
[312048807,1705576238690,-500.0,0.00031959,2]
[312048808,1705576238699,-483.3171509,0.00031959,2]
[312048809,1705576238708,-500.0,0.00031959,2]
[312048810,1705576238717,-500.0,0.00031959,2]
[312048811,1705576238727,-500.0,0.00031959,2]
[312048812,1705576238736,-500.0,0.00031959,2]
[312048813,1705576238745,-500.0,0.00031959,2]
[312048814,1705576238756,-500.0,0.00031959,2]
[312048815,1705576238765,-500.0,0.00031959,2]
[312048816,1705576238775,-500.0,0.00031959,2]
[312048817,1705576238786,-500.0,0.00031959,2]
[312048818,1705576238795,-500.0,0.00031959,2]
[312048819,1705576238805,-500.0,0.00031959,2]
[312048820,1705576238815,-500.0,0.00031959,2]
[312048821,1705576238910,-500.0,0.00031959,2]
[312048822,1705576238920,-500.0,0.00031959,2]
[312048823,1705576238929,-500.0,0.00031959,2]
[312048824,1705576238939,-500.0,0.00031959,2]
[312048825,1705576238953,-500.0,0.00031959,2]
[312048826,1705576238964,-500.0,0.00031959,2]
[312048827,1705576238973,-500.0,0.00031959,2]
[312048828,1705576238983,-500.0,0.00031959,2]
[312048829,1705576238993,-500.0,0.00031959,2]
[312048830,1705576239003,-500.0,0.00031959,2]
[312048831,1705576239012,-500.0,0.00031959,2]
[312048832,1705576239022,-289.07212258,0.00031959,2]
[312048833,1705576239031,-476.36877787,0.00031959,2]
[312048834,1705576239040,-998.8779114,0.0003196,2]
[312048835,1705576239051,-92970.17385904,0.0003196,2]
[312048836,1705576239061,-257459.23559535,0.0003196,2]
[312048837,1705576239070,-198.04,0.00031999,2]
[312048838,1705576239079,-188.45,0.00031999,2]
[312048839,1705576239088,-450.93567932,0.00031999,4]
[312048840,1705576239097,-430.80459298,0.00031999,4]
[312048841,1705576239106,-500.0,0.00031999,4]
[312048842,1705576239115,-500.0,0.00031999,4]
[312048843,1705576239125,-500.0,0.00031999,4]
[312048844,1705576239134,-500.0,0.00031999,4]
[312048845,1705576239143,-410.59799028,0.00031999,4]
[312048846,1705576239152,-381.37945852,0.00031999,4]
[312048847,1705576239161,-500.0,0.00031999,4]
[312048848,1705576239170,-500.0,0.00031999,4]
[312048849,1705576239179,-500.0,0.00031999,4]
[312048850,1705576239188,-368.79151045,0.00031999,4]
[312048851,1705576239197,-500.0,0.00031999,4]
[312048853,1705576239207,-500.0,0.00031999,4]
[312048855,1705576239216,-500.0,0.00031999,4]
[312048856,1705576239225,-500.0,0.00031999,4]
[312048857,1705576239234,-500.0,0.00031999,4]
[312048858,1705576239243,-94816.89217279,0.00032,15]
[312048859,1705576239253,-2000.0,0.00032,8]
[312048860,1705576239263,-2000.000001,0.0003201,8]
[312048861,1705576239274,-155.0,0.00032168,2]
[312048862,1705576239284,-5000.0,0.00032246,10]
[312048863,1705576239294,-227729.41191894,0.000324,2]
[312048875,1705576240899,-151.0,0.00030999,2]
[312048876,1705576240909,-151.0,0.00030999,2]
[312048877,1705576240918,-151.0,0.00030999,2]
[312048878,1705576240927,-151.0,0.00031999,2]
[312048879,1705576240936,-151.0,0.00031999,2]
[312048880,1705576240945,-151.0,0.00032399,2]
[312048881,1705576240955,-27607.71512696,0.000324,2]
[312048929,1705576242756,-543.84367337,0.000324,2]
[312049054,1705577431926,-2718.21416202,0.00025874,2]
[312049057,1705577431937,-2461.64810465,0.00025874,2]
[312049059,1705577431947,-880.58447264,0.00025875,2]
[312049061,1705577431956,-662.5290023,0.00025876,2]
[312049063,1705577431965,-976.18563318,0.00025877,2]
[312049075,1705577432066,-166.666666,0.0002663,2]
[312049077,1705577432077,-265.9908611,0.0002697,2]
[312049079,1705577432085,-10114.7811794,0.00027188,2]
[312049081,1705577432095,-497.89805688,0.00027314,5]
[312049083,1705577432104,-3000.0,0.00027339,2]
[312049085,1705577432113,-166.666666,0.00027356,2]
[312049087,1705577432123,-784.9463782,0.00027366,2]
[312049089,1705577432132,-212.649449,0.00027995,2]
[312049091,1705577432141,-166.666666,0.00028083,2]
[312049093,1705577432150,-5000.0,0.00028128,5]
[312049095,1705577432160,-2226.19575142,0.00028177,2]
[312049097,1705577432169,-165.209326,0.00028708,2]
[312049099,1705577432178,-3175.32,0.00028744,3]
[312049101,1705577432187,-1241.70084198,0.00028752,2]
[312049103,1705577432197,-155.0,0.00028752,2]
[312049105,1705577432206,-10768.27565345,0.00028752,2]
[312049107,1705577432215,-594.98421659,0.00028752,2]
[312049109,1705577432225,-155.55638664,0.00028752,2]
[312049111,1705577432234,-1952.0190597,0.00028752,2]
[312049113,1705577432243,-181.38411565,0.00028752,2]
[312049116,1705577432253,-214.49985454,0.00028752,2]
[312049118,1705577432263,-425.62034809,0.00028752,2]
[312049119,1705577432272,-154.9690062,0.00028753,2]
[312049121,1705577432281,-5875.10325317,0.00028753,2]
[312049123,1705577432291,-30908.96252295,0.00028754,4]
[312049125,1705577432300,-4693.87053206,0.00028787,4]
[312049127,1705577432309,-154.93802479,0.00028798,4]
[312049129,1705577432319,-3000.0,0.000288,3]
[312049131,1705577432328,-166.666666,0.00028809,2]
[312049133,1705577432338,-6907.05,0.00028829,2]
[312049135,1705577432347,-6907.05,0.00028829,2]
[312049137,1705577432356,-6907.05,0.00028829,2]
[312049139,1705577432365,-3600.53062945,0.00028829,2]
[312049155,1705577437952,-705.0604155,0.0002883,3]
[312049156,1705577437961,-84639.84491351,0.0002883,4]
[312049157,1705577437970,-10682.57796773,0.00028855,3]
[312049158,1705577437979,-154.93802479,0.00029,2]
[312049159,1705577437988,-2455.73923901,0.00029,2]
[312049160,1705577437997,-155.0,0.000293,2]
[312049161,1705577438005,-166.666666,0.00029535,2]
[312049162,1705577438016,-200.0,0.00029906,15]
[312049163,1705577438025,-682.23213824,0.0003,3]
[312049164,1705577438035,-464.23133021,0.0003,2]
[312049165,1705577438044,-243.91959085,0.0003,4]
[312049166,1705577438053,-640.81580837,0.0003,4]
[312049167,1705577438061,-154.95351395,0.0003,2]
[312049168,1705577438070,-231.70259256,0.0003,4]
[312049169,1705577438079,-201.08171049,0.0003,4]
[312049170,1705577438088,-687.89788967,0.0003,4]
[312049171,1705577438097,-396.0,0.0003,2]
[312049172,1705577438107,-167.13604108,0.00030136,2]
[312049173,1705577438115,-378.581541,0.00030137,2]
[312049174,1705577438124,-181.653127,0.00030137,2]
[312049175,1705577438134,-166.666666,0.00030261,2]
[312049176,1705577438143,-1510.81953642,0.000303,2]
[312049177,1705577438152,-1274.45485847,0.00030428,2]
[312049178,1705577438162,-4610.72976218,0.00030444,2]
[312049179,1705577438171,-1075.8369445,0.00030444,2]